bitfinex/quotes_SOLUSD_20250917
["timestamp","ask_amount","ask_price","bid_price","bid_amount"]
[1758149556181,4.07630849,245.32,245.27,4.3867651]
[1758149556560,4.3867651,245.33,245.27,4.3867651]
[1758149557385,4.78601877,245.34,245.25,33.66]
[1758149557684,4.78601877,245.34,245.27,4.3867651]
[1758149557685,4.3867651,245.33,245.27,4.3867651]
[1758149558365,9.17278387,245.34,245.27,4.3867651]
[1758149558570,4.78601877,245.34,245.27,4.3867651]
[1758149558982,4.3867651,245.33,245.27,4.3867651]
[1758149559183,9.17278387,245.34,245.27,4.3867651]
[1758149559365,4.78601877,245.34,245.28,33.58]
[1758149559566,9.17278387,245.34,245.28,33.58]
[1758149559883,9.17278387,245.34,245.29,33.58]
[1758149560084,0.71,245.33,245.29,33.58]
[1758149560967,0.71,245.33,245.28,4.3867651]
[1758149561167,0.71,245.33,245.29,33.56]
[1758149561379,4.78614686,245.33,245.27,4.3867651]
[1758149561569,9.17291196,245.33,245.28,33.54]
[1758149561779,4.78614686,245.33,245.28,33.54]
[1758149561966,9.17291196,245.33,245.28,33.54]
[1758149562161,8.46291196,245.33,245.28,33.54]
[1758149562366,0.71,245.32,245.28,33.54]
[1758149562677,0.71,245.33,245.28,37.9267651]
[1758149563080,0.71,245.33,245.29,33.5]
[1758149563879,4.07531176,245.38,245.29,33.5]
[1758149564072,0.71,245.37,245.32,1.68543486]
[1758149564271,0.71,245.37,245.33,35.16543486]
[1758149564471,1.68543486,245.39,245.34,33.5]
[1758149564674,5.76058118,245.39,245.34,33.5]
[1758149564878,0.71,245.39,245.34,33.5]
[1758149565288,0.71,245.39,245.34,35.18543486]
[1758149565473,0.06,245.41,245.35,35.16543486]
[1758149565790,4.13483932,245.41,245.35,35.16543486]
[1758149566087,5.82027418,245.41,245.35,35.16543486]
[1758149566284,1.74543486,245.41,245.35,35.16543486]
[1758149566481,1.74543486,245.41,245.35,39.24122923]
[1758149566879,5.82027251,245.41,245.35,35.16543486]
[1758149567486,4.13483765,245.41,245.35,35.16543486]
[1758149567993,5.82027251,245.41,245.35,35.16543486]
[1758149568574,5.76056124,245.4,245.34,1.68543486]
[1758149568776,1.68543486,245.38,245.35,33.4]
[1758149568979,1.68543486,245.36,245.34,33.4]
[1758149569185,0.71,245.37,245.34,33.4]
[1758149569186,2.39543486,245.37,245.34,33.4]
[1758149569492,0.71,245.37,245.34,33.4]
[1758149569877,1.68543486,245.38,245.34,33.4]
[1758149570072,1.68543486,245.36,245.27,4.0770897]
[1758149570276,0.71,245.37,245.32,1.68543486]
[1758149570487,0.71,245.37,245.33,33.4]
[1758149571076,0.71,245.36,245.31,1.68543486]
[1758149571297,0.71,245.36,245.33,33.38]
[1758149572678,1.68543486,245.34,245.26,1.68543486]
[1758149572902,1.68543486,245.32,245.27,33.36]
[1758149573198,2.39543486,245.32,245.28,33.36]
[1758149573504,1.68543486,245.36,245.3,1.68543486]
[1758149573688,1.68543486,245.37,245.3,35.04543486]
[1758149574097,1.68543486,245.38,245.32,1.68543486]
[1758149574410,1.68543486,245.39,245.33,1.68543486]
[1758149574592,1.68543486,245.39,245.32,1.68543486]
[1758149574791,4.78497962,245.4,245.32,1.68543486]
[1758149574992,0.06,245.41,245.31,0.03]
[1758149574993,0.06,245.41,245.36,1.68543486]
[1758149575190,0.77,245.41,245.36,35.04543486]
[1758149575389,2.45543486,245.41,245.36,33.36]
[1758149575584,0.77,245.41,245.36,33.36]
[1758149575801,2.45543486,245.41,245.36,33.36]
[1758149575979,6.53026702,245.41,245.36,33.36]
[1758149576184,2.39543486,245.4,245.36,33.36]
[1758149576490,4.13483216,245.41,245.35,33.34]
[1758149576491,1.68543486,245.38,245.35,33.34]
[1758149576876,2.39543486,245.38,245.35,33.34]
[1758149577081,4.78513402,245.4,245.35,33.34]
[1758149577281,1.68543486,245.39,245.35,33.34]
[1758149577584,0.68,245.38,245.33,27.68543486]
[1758149577798,0.68,245.38,245.34,33.32]
[1758149578806,0.68,245.37,245.31,0.03]
[1758149578992,1.68543486,245.35,245.34,33.3]
[1758149579189,5.76124492,245.35,245.34,33.3]
[1758149579395,4.07581006,245.35,245.34,33.3]
[1758149579718,6.44107578,245.37,245.34,33.3]
[1758149579900,1.68543486,245.36,245.34,33.3]
[1758149580200,4.75564092,245.37,245.31,0.03]
[1758149580201,2.36543486,245.35,245.31,0.03]
[1758149580390,1.68543486,245.33,245.31,0.03]
[1758149580983,2.36543486,245.36,245.31,0.03]
[1758149581196,4.75591929,245.35,245.31,0.03]
[1758149581590,0.68,245.38,245.31,1.71543486]
[1758149581794,4.07531861,245.38,245.34,2.63224195]
[1758149582181,4.07514094,245.4,245.34,35.89224195]
[1758149582388,4.07514094,245.4,245.35,2.63224195]
[1758149582598,0.06,245.41,245.36,2.63224195]
[1758149582801,4.85483025,245.41,245.35,2.63224195]
[1758149583706,4.85483025,245.41,245.34,33.26]
[1758149583899,4.85483025,245.41,245.35,2.63224195]
[1758149584203,0.06,245.41,245.38,2.63224195]
[1758149586191,0.06,245.41,245.4,2.63224195]
[1758149586507,0.06,245.41,245.4,33.18]
[1758149587103,0.06,245.41,245.4,35.81224195]
[1758149587304,0.06,245.41,245.4,40.17154471]
[1758149587486,0.06,245.41,245.4,51.54239473]
[1758149587693,0.06,245.41,245.4,62.91053413]
[1758149587888,0.06,245.41,245.4,57.64605023]
[1758149588211,0.06,245.41,245.4,59.2]
[1758149588404,0.06,245.41,245.4,61.83224195]
[1758149588706,0.06,245.41,245.4,52.34440105]
[1758149589210,23.598,245.51,245.44,26.0]
[1758149589403,24.318,245.51,245.47,2.63224195]
[1758149589602,23.598,245.51,245.47,2.63224195]
[1758149589804,23.598,245.51,245.49,2.63224195]
[1758149590004,23.598,245.51,245.5,33.22]
[1758149590195,24.318,245.51,245.5,33.2]
[1758149590596,23.598,245.51,245.5,33.2]
[1758149592005,23.598,245.51,245.5,35.83224195]
[1758149592693,23.598,245.51,245.45,4.48144523]
[1758149592903,23.598,245.51,245.5,2.63224195]
[1758149593106,23.598,245.51,245.5,35.79224195]
[1758149594095,23.598,245.51,245.5,33.16]
[1758149594297,23.598,245.51,245.5,35.79224195]
[1758149594504,23.598,245.51,245.46,0.28432314]
[1758149594505,23.598,245.51,245.45,26.0]
[1758149594802,23.598,245.51,245.5,2.63224195]
[1758149594996,23.598,245.51,245.5,35.77224195]
[1758149596002,23.598,245.51,245.5,33.14]
[1758149596202,23.598,245.51,245.5,35.77224195]
[1758149596816,23.598,245.51,245.5,2.63224195]
[1758149597020,23.598,245.51,245.46,0.40739835]
[1758149597205,24.318,245.51,245.49,2.63224195]
[1758149597408,23.598,245.51,245.5,33.1]
[1758149597608,23.598,245.51,245.5,33.08]
[1758149597822,23.598,245.51,245.5,35.71224195]
[1758149600125,23.598,245.51,245.5,45.59499359]
[1758149600320,23.598,245.51,245.5,48.22723554]
[1758149600522,23.598,245.51,245.5,28.74282955]
[1758149600820,23.598,245.51,245.5,61.78282955]
[1758149601328,23.598,245.51,245.5,64.4150715]
[1758149601821,23.598,245.51,245.5,28.74282955]
[1758149602019,23.598,245.51,245.5,48.18723554]
[1758149602223,23.598,245.51,245.5,61.78282955]
[1758149602608,23.598,245.51,245.5,65.8361493]
[1758149603112,23.598,245.51,245.5,19.22055529]
[1758149603314,23.598,245.51,245.5,52.26055529]
[1758149603928,23.598,245.51,245.5,19.22055529]
[1758149604117,23.598,245.51,245.5,52.26055529]
[1758149604312,23.598,245.51,245.5,51.95623215]
[1758149604508,23.598,245.51,245.5,16.3039902]
[1758149604712,23.598,245.51,245.5,52.24055529]
[1758149605218,23.598,245.51,245.5,61.89918649]
[1758149605421,23.598,245.51,245.5,64.51142844]
[1758149605901,23.598,245.51,245.5,64.2271053]
[1758149606101,23.598,245.51,245.5,31.2271053]
[1758149606305,23.598,245.51,245.5,64.2071053]
[1758149606507,23.598,245.51,245.5,31.2271053]
[1758149606713,23.598,245.51,245.5,64.2071053]
[1758149607418,23.598,245.51,245.5,61.57486335]
[1758149607612,23.598,245.51,245.5,64.2071053]
[1758149607924,23.598,245.51,245.5,64.1871053]
[1758149608304,23.598,245.51,245.5,28.59486335]
[1758149608503,24.318,245.51,245.5,47.8631151]
[1758149608927,24.318,245.51,245.5,32.94]
[1758149609133,24.318,245.51,245.5,35.57224195]
[1758149609329,23.598,245.51,245.5,35.57224195]
[1758149609630,23.598,245.51,245.5,39.6455617]
[1758149610202,23.598,245.51,245.5,37.01331975]
[1758149610408,23.598,245.51,245.5,39.6455617]
[1758149610607,23.598,245.51,245.5,2.63224195]
[1758149610814,24.318,245.51,245.5,32.92]
[1758149611018,23.598,245.51,245.5,35.55224195]
[1758149611228,24.318,245.51,245.5,35.55224195]
[1758149611603,23.598,245.51,245.49,2.63224195]
[1758149611839,23.598,245.51,245.5,32.9]
[1758149612043,24.318,245.51,245.5,32.9]
[1758149612203,24.318,245.51,245.49,2.63224195]
[1758149612409,0.72,245.5,245.49,2.63224195]
[1758149612609,0.72,245.5,245.49,35.55224195]
[1758149613813,4.79333729,245.5,245.41,33.03]
[1758149614046,0.72,245.49,245.42,32.9]
[1758149614508,3.35224195,245.48,245.41,2.66224195]
[1758149614706,3.35224195,245.48,245.43,32.9]
[1758149614707,0.72,245.47,245.43,32.9]
[1758149614939,0.72,245.46,245.44,32.9]
[1758149615140,0.72,245.45,245.44,32.18]
[1758149615633,4.79414952,245.45,245.44,32.18]
[1758149615941,14.97952332,245.45,245.41,0.03]
[1758149616108,14.97952332,245.45,245.42,21.34]
[1758149616308,0.72,245.44,245.42,21.34]
[1758149616706,3.35224195,245.43,245.42,21.34]
[1758149616929,0.72,245.43,245.41,0.03]
[1758149617233,0.72,245.42,245.41,28.71]
[1758149617732,33.18432314,245.52,245.41,28.71]
[1758149617733,0.72,245.46,245.41,35.41703193]
[1758149617908,0.72,245.46,245.45,2.63224195]
[1758149618110,22.53081014,245.53,245.45,35.55224195]
[1758149618316,0.72,245.52,245.48,2.63224195]
[1758149618511,22.53081014,245.53,245.49,32.92]
[1758149618723,22.53081014,245.53,245.42,38.2346608]
[1758149619006,22.53081014,245.53,245.46,2.63224195]
[1758149619212,0.72,245.5,245.48,2.63224195]
[1758149619418,22.53081014,245.53,245.49,35.55224195]
[1758149619618,22.53081014,245.53,245.5,35.55224195]
[1758149620528,22.53081014,245.53,245.5,32.92]
[1758149621015,24.318,245.51,245.5,32.92]
[1758149621723,24.318,245.51,245.5,32.88]
[1758149622018,23.598,245.51,245.5,35.51224195]
[1758149623014,23.598,245.51,245.5,2.63224195]
[1758149623211,23.598,245.51,245.5,35.51224195]
[1758149623516,23.598,245.51,245.5,35.49224195]
[1758149624018,23.598,245.51,245.5,36.17224195]
[1758149626027,23.598,245.51,245.49,16.30459673]
[1758149626228,23.598,245.51,245.5,35.45224195]
[1758149626620,23.598,245.51,245.5,2.63224195]
[1758149626831,23.598,245.51,245.5,35.45224195]
[1758149627032,23.598,245.51,245.49,12.23116909]
[1758149627228,23.598,245.51,245.5,61.45224195]
[1758149627734,23.598,245.51,245.5,58.82]
[1758149627916,23.598,245.51,245.5,61.43224195]
[1758149629320,23.598,245.51,245.5,58.8]
[1758149629615,23.598,245.51,245.5,61.41224195]
[1758149630022,23.598,245.51,245.5,32.7055617]
[1758149630235,23.598,245.51,245.5,28.63224195]
[1758149630636,23.598,245.51,245.5,61.39224195]
[1758149630825,24.318,245.51,245.5,32.76]
[1758149631033,24.318,245.51,245.47,12.23216652]
[1758149631226,0.72,245.5,245.48,32.76]
[1758149631428,0.72,245.5,245.49,32.76]
[1758149631926,23.598,245.51,245.49,39.46569581]
[1758149632244,23.598,245.51,245.5,2.63224195]
[1758149633245,23.598,245.51,245.5,35.39224195]
[1758149633743,24.318,245.51,245.5,35.37224195]
[1758149634232,23.598,245.51,245.5,39.4455617]
[1758149634631,23.598,245.51,245.5,36.81331975]
[1758149634844,23.598,245.51,245.5,39.4455617]
[1758149635232,23.598,245.51,245.5,40.1255617]
[1758149635944,23.598,245.51,245.5,39.4455617]
[1758149636134,23.598,245.51,245.5,40.1255617]
[1758149636332,23.598,245.51,245.5,65.4255617]
[1758149637441,23.598,245.51,245.5,32.7055617]
[1758149637635,23.598,245.51,245.5,62.77331975]
[1758149637841,23.598,245.51,245.5,65.4055617]
[1758149638345,23.598,245.51,245.5,32.7055617]
[1758149638524,23.598,245.51,245.5,65.4055617]
[1758149638722,23.598,245.51,245.5,32.7055617]
[1758149638929,23.598,245.51,245.5,65.3855617]
[1758149639648,22.878,245.51,245.5,66.1055617]
[1758149639859,22.878,245.51,245.5,68.01780365]
[1758149640059,22.878,245.51,245.5,69.54863036]
[1758149640259,22.878,245.51,245.5,79.34578229]
[1758149640429,22.878,245.51,245.5,67.97764289]
[1758149640623,22.878,245.51,245.5,73.24212679]
[1758149640831,22.878,245.51,245.5,49.62505277]
[1758149641030,22.53081014,245.53,245.51,0.28432314]
[1758149641247,22.53081014,245.53,245.52,51.55991715]
[1758149641436,22.53081014,245.53,245.52,56.82440105]
[1758149641655,22.53081014,245.53,245.52,49.90917473]
[1758149641836,22.53081014,245.53,245.52,55.45798177]
[1758149642148,22.53081014,245.53,245.52,50.19349787]
[1758149642334,22.53081014,245.53,245.52,55.45798177]
[1758149642535,0.72,245.64,245.55,26.0]
[1758149642849,0.72,245.64,245.63,2.63224195]
[1758149643152,4.07008037,245.7,245.63,2.63224195]
[1758149643460,4.07008037,245.7,245.64,37.74]
[1758149643755,0.72,245.69,245.62,1.68074665]
[1758149644067,0.72,245.68,245.63,37.76]
[1758149644357,0.72,245.67,245.64,37.78]
[1758149644526,0.72,245.66,245.64,37.78]
[1758149644726,0.72,245.65,245.64,37.78]
[1758149644956,0.72,245.65,245.6,1.68074665]
[1758149645259,0.72,245.7,245.64,1.68074665]
[1758149645441,0.72,245.69,245.66,1.68074665]
[1758149645644,0.72,245.68,245.67,39.44074665]
[1758149646147,0.72,245.68,245.67,37.86]
[1758149646464,23.598,245.71,245.67,50.19246525]
[1758149646654,23.598,245.71,245.7,1.68074665]
[1758149646655,24.318,245.71,245.7,1.68074665]
[1758149647156,24.318,245.71,245.67,0.4070501]
[1758149647342,0.72,245.7,245.66,12.22319555]
[1758149647547,0.72,245.69,245.67,38.1]
[1758149647851,0.72,245.68,245.66,1.68074665]
[1758149648037,0.72,245.67,245.63,38.22419168]
[1758149648358,23.598,245.71,245.5,44.57868582]
[1758149648359,1.68074665,245.65,245.51,13.59559401]
[1758149648559,0.72,245.64,245.6,12.2266827]
[1758149648748,0.72,245.63,245.61,38.14]
[1758149648942,0.72,245.65,245.62,38.14]
[1758149649144,0.72,245.65,245.63,1.68074665]
[1758149649347,0.72,245.64,245.63,1.68074665]
[1758149649653,23.598,245.71,245.63,1.68074665]
[1758149649855,0.72,245.7,245.66,1.68074665]
[1758149650037,0.72,245.69,245.61,0.28432314]
[1758149650236,0.72,245.69,245.65,1.68074665]
[1758149650452,23.598,245.71,245.66,38.36]
[1758149650453,0.72,245.68,245.66,38.36]
[1758149650656,0.72,245.67,245.65,1.68074665]
[1758149650858,0.72,245.67,245.66,38.36]
[1758149651431,0.72,245.67,245.66,38.3]
[1758149651831,0.72,245.67,245.66,0.5]
[1758149652034,2.40074665,245.67,245.66,38.78]
[1758149652445,23.598,245.71,245.66,38.78]
[1758149652651,0.72,245.69,245.67,1.68074665]
[1758149652833,0.72,245.69,245.66,0.5]
[1758149653151,0.72,245.68,245.67,38.22]
[1758149653554,4.07000407,245.7,245.67,38.2]
[1758149653851,4.07000407,245.7,245.68,38.2]
[1758149654228,14.24501424,245.7,245.68,38.2]
[1758149655647,14.24617387,245.68,245.6,1.68074665]
[1758149655953,0.72,245.69,245.62,1.68074665]
[1758149656535,2.40074665,245.68,245.58,26.40719928]
[1758149656755,0.72,245.67,245.6,13.90742935]
[1758149657538,4.07066677,245.66,245.6,13.90742935]
[1758149657742,4.07066677,245.66,245.61,38.04]
[1758149657950,0.72,245.65,245.61,38.04]
[1758149658347,0.72,245.67,245.61,38.04]
[1758149658546,0.72,245.67,245.61,1.68074665]
[1758149658746,0.72,245.67,245.62,37.94]
[1758149658950,0.72,245.69,245.63,1.68074665]
[1758149659147,23.598,245.71,245.65,1.68074665]
[1758149659545,23.598,245.71,245.65,0.40708324]
[1758149659752,23.598,245.71,245.65,6.82862949]
[1758149660052,23.598,245.71,245.65,5.14788284]
[1758149660456,23.598,245.71,245.67,1.68074665]
[1758149660646,23.598,245.71,245.68,37.86]
[1758149660972,24.318,245.71,245.68,37.86]
[1758149661666,23.598,245.71,245.68,37.86]
[1758149661866,24.318,245.71,245.68,37.86]
[1758149662554,23.598,245.71,245.68,41.93033073]
[1758149662755,23.598,245.71,245.68,37.86]
[1758149663267,0.2,245.76,245.7,27.68074665]
[1758149663444,0.2,245.76,245.72,1.68074665]
[1758149663644,0.2,245.76,245.73,37.7]
[1758149663844,0.92,245.76,245.74,37.68]
[1758149665062,0.92,245.76,245.71,5.74926888]
[1758149665365,0.92,245.76,245.72,39.30074665]
[1758149665586,0.2,245.76,245.73,39.95074665]
[1758149665893,4.98908416,245.76,245.74,37.6]
[1758149666196,2.40074665,245.75,245.65,1.68074665]
[1758149666392,1.68074665,245.7,245.66,37.56]
[1758149666563,1.68074665,245.68,245.62,0.67]
[1758149666764,2.40074665,245.67,245.63,37.54]
[1758149666981,0.72,245.66,245.64,37.54]
[1758149667181,0.72,245.7,245.65,37.54]
[1758149667494,0.72,245.69,245.66,37.52]
[1758149667804,2.40074665,245.68,245.6,5.75239935]
[1758149667976,1.68074665,245.66,245.61,37.5]
[1758149668169,6.47108299,245.68,245.61,37.5]
[1758149668370,1.68074665,245.68,245.61,38.17]
[1758149668892,5.75107879,245.69,245.61,39.85074665]
[1758149669391,5.75107879,245.69,245.61,38.17]
[1758149669564,5.75107879,245.69,245.61,39.85074665]
[1758149669899,1.68074665,245.66,245.61,0.67]
[1758149670192,1.68074665,245.66,245.62,37.44]
[1758149670389,1.68074665,245.66,245.59,0.67]
[1758149670570,2.40074665,245.66,245.6,37.36]
[1758149670963,1.68074665,245.65,245.6,37.36]
[1758149671169,1.68074665,245.66,245.6,37.36]
[1758149671576,1.68074665,245.66,245.59,0.67]
[1758149671777,5.75176752,245.64,245.6,37.3]
[1758149671998,1.68074665,245.63,245.59,0.67]
[1758149672200,0.72,245.67,245.61,37.28]
[1758149672494,1.68074665,245.66,245.62,37.26]
[1758149672794,1.68074665,245.66,245.62,37.92]
[1758149672973,1.68074665,245.66,245.62,37.26]
[1758149673174,1.68074665,245.68,245.62,37.26]
[1758149673375,1.68074665,245.67,245.62,37.26]
[1758149673672,1.68074665,245.67,245.62,37.92]
[1758149673880,1.68074665,245.66,245.62,37.92]
[1758149674182,5.75139856,245.67,245.62,0.66]
[1758149674498,1.68074665,245.69,245.63,37.84]
[1758149675397,5.7508997,245.7,245.63,39.52074665]
[1758149675595,4.07015305,245.7,245.63,37.84]
[1758149675814,1.68074665,245.7,245.64,0.66]
[1758149675982,5.75078193,245.7,245.64,0.66]
[1758149676183,1.68074665,245.71,245.64,4.73097911]
[1758149676697,1.68074665,245.7,245.64,4.73097911]
[1758149677286,0.66,245.72,245.64,4.73097911]
[1758149677487,1.68074665,245.7,245.64,4.73097911]
[1758149677700,1.68074665,245.7,245.64,0.66]
[1758149678797,5.75075341,245.7,245.64,0.66]
[1758149679001,4.07000676,245.7,245.64,4.73094522]
[1758149679181,5.75075341,245.7,245.64,4.73094522]
[1758149679805,4.72974479,245.72,245.64,6.41169187]
[1758149680100,1.68074665,245.71,245.64,4.73094522]
[1758149680287,1.68074665,245.68,245.65,36.92]
[1758149680691,4.06974479,245.72,245.65,36.92]
[1758149681008,1.68074665,245.71,245.66,0.66]
[1758149681688,1.68074665,245.7,245.66,0.66]
[1758149681893,1.68074665,245.7,245.67,36.88]
[1758149682294,4.06974479,245.72,245.67,36.88]
[1758149682506,1.68074665,245.7,245.67,36.88]
[1758149682706,2.34074665,245.71,245.67,36.88]
[1758149683013,1.68074665,245.71,245.67,36.88]
[1758149683209,0.2,245.76,245.68,0.66]
[1758149683511,0.86,245.76,245.68,0.66]
[1758149683711,1.68074665,245.74,245.68,0.66]
[1758149683912,0.2,245.76,245.69,1.68074665]
[1758149684090,0.2,245.76,245.7,0.66]
[1758149684294,1.88074665,245.76,245.71,36.74]
[1758149684501,1.88074665,245.76,245.71,37.4]
[1758149684914,1.68074665,245.75,245.68,1.68074665]
[1758149685218,5.74994502,245.75,245.69,36.74]
[1758149685420,1.68074665,245.74,245.69,36.74]
[1758149685630,1.68074665,245.74,245.7,36.68]
[1758149685994,1.68074665,245.74,245.7,37.34]
[1758149686220,4.06919837,245.75,245.7,37.34]
[1758149686394,4.06919837,245.75,245.7,36.68]
[1758149686595,5.74994502,245.75,245.7,37.34]
[1758149686796,5.74994502,245.75,245.7,0.66]
[1758149686797,6.40994502,245.75,245.7,0.66]
[1758149687004,2.34074665,245.74,245.71,36.62]
[1758149687214,0.66,245.74,245.71,36.62]
[1758149687518,2.34074665,245.74,245.72,36.62]
[1758149687891,1.68074665,245.73,245.67,0.66]
[1758149688101,1.68074665,245.72,245.68,36.6]
[1758149688430,5.75038013,245.73,245.68,0.66]
[1758149689123,5.75038013,245.73,245.69,36.54]
[1758149689310,2.34074665,245.74,245.69,36.54]
[1758149689513,1.68074665,245.73,245.69,36.54]
[1758149689905,0.66,245.74,245.7,36.5]
[1758149689906,1.68074665,245.71,245.7,36.5]
[1758149690109,1.68074665,245.72,245.7,36.5]
[1758149690400,6.41044466,245.72,245.66,0.66]
[1758149690726,2.34074665,245.72,245.66,0.66]
[1758149690900,4.72970034,245.72,245.67,36.46]
[1758149691100,4.72970034,245.72,245.67,37.12]
[1758149691720,1.68074665,245.71,245.67,37.12]
[1758149691923,1.68074665,245.7,245.67,37.12]
[1758149692119,1.68074665,245.71,245.67,36.46]
[1758149692416,2.34074665,245.71,245.68,36.38]
[1758149692916,1.68074665,245.7,245.68,36.38]
[1758149693117,1.68074665,245.7,245.65,0.66]
[1758149693314,2.34074665,245.71,245.66,37.04]
[1758149693511,2.34074665,245.71,245.67,36.34]
[1758149693708,1.68074665,245.7,245.67,36.34]
[1758149694306,4.07000407,245.7,245.67,36.34]
[1758149694513,5.75075072,245.7,245.67,36.34]
[1758149694817,1.68074665,245.69,245.67,36.34]
[1758149695003,4.07000407,245.7,245.67,36.34]
[1758149695004,5.75075072,245.7,245.67,36.34]
[1758149695322,4.07000407,245.7,245.66,0.66]
[1758149695526,4.07000407,245.7,245.68,36.32]
[1758149695820,5.75075072,245.7,245.68,36.32]
[1758149696024,4.07000407,245.7,245.68,36.32]
[1758149696407,4.06969912,245.72,245.68,36.32]
[1758149696603,1.68074665,245.71,245.68,36.32]
[1758149697003,1.68074665,245.7,245.68,36.32]
[1758149697233,1.68074665,245.71,245.68,36.32]
[1758149697421,4.06969912,245.72,245.68,36.32]
[1758149697623,1.68074665,245.71,245.68,36.32]
[1758149697825,4.72969912,245.72,245.68,36.32]
[1758149697826,0.2,245.76,245.69,0.66]
[1758149698139,1.68074665,245.74,245.69,0.66]
[1758149698336,0.9,245.76,245.69,0.71]
[1758149698523,1.68074665,245.74,245.69,0.71]
[1758149698735,2.38074665,245.74,245.69,0.71]
[1758149699327,1.68074665,245.75,245.7,0.71]
[1758149699627,1.68074665,245.73,245.68,36.32]
[1758149699932,1.68074665,245.73,245.68,37.03]
[1758149700130,1.68074665,245.73,245.68,36.32]
[1758149700430,5.75027274,245.73,245.69,0.71]
[1758149700725,2.38074665,245.72,245.7,36.12]
[1758149701034,1.68074665,245.72,245.7,36.12]
[1758149701611,10.37252604,245.76,245.7,36.12]
[1758149701923,10.37252604,245.76,245.7,36.83]
[1758149702117,0.7,245.75,245.7,36.12]
[1758149702427,0.2,245.76,245.7,36.12]
[1758149702635,0.2,245.76,245.71,0.7]
[1758149703131,0.2,245.76,245.72,0.40696727]
[1758149703306,0.2,245.76,245.74,1.68074665]
[1758149703506,0.2,245.76,245.75,37.41124073]
[1758149703743,0.2,245.76,245.75,1.39124073]
[1758149703922,0.2,245.76,245.75,3.60648344]
[1758149704126,0.2,245.76,245.75,39.60648344]
[1758149704342,0.2,245.76,245.75,44.08257702]
[1758149705339,7.97945408,245.85,245.75,44.08257702]
[1758149705340,7.97945408,245.85,245.76,13.87991715]
[1758149705518,7.97945408,245.85,245.77,0.7]
[1758149705859,12.04698423,245.85,245.78,38.6221603]
[1758149706017,7.97945408,245.85,245.81,2.6221603]
[1758149706212,7.97945408,245.85,245.82,36.68]
[1758149706526,7.97945408,245.85,245.82,35.98]
[1758149706736,2.6221603,245.83,245.73,3.3221603]
[1758149706909,2.6221603,245.79,245.73,0.7]
[1758149707114,2.6221603,245.74,245.7,0.03]
[1758149707326,2.6221603,245.71,245.7,12.71]
[1758149707533,3.2821603,245.71,245.7,12.71]
[1758149707916,0.66,245.71,245.7,0.03]
[1758149708124,42.83771017,245.85,245.7,0.03]
[1758149708323,0.66,245.78,245.7,0.73]
[1758149708535,2.6221603,245.75,245.7,0.03]
[1758149708714,2.6221603,245.73,245.72,0.5]
[1758149709754,3.2821603,245.73,245.72,0.5]
[1758149709958,4.06819242,245.81,245.72,1.2]
[1758149710155,2.6221603,245.77,245.73,35.94]
[1758149710451,2.6221603,245.77,245.72,0.5]
[1758149710452,4.72901041,245.76,245.74,35.9]
[1758149710651,3.2821603,245.75,245.74,35.9]
[1758149710852,3.2821603,245.75,245.72,0.5]
[1758149711050,2.6221603,245.75,245.73,35.88]
[1758149711443,0.66,245.79,245.73,36.58]
[1758149711646,7.97945408,245.85,245.74,35.86]
[1758149711963,8.63945408,245.85,245.75,3.3221603]
[1758149712253,7.97945408,245.85,245.76,3.3221603]
[1758149712455,2.6221603,245.84,245.77,0.7]